fUSD/lending_fUSD_20251220
["ID","MTS","AMOUNT","RATE_DAILY","PERIOD"]
[399299348,1766257841640,-150.0,0.00015828,2]
[399299349,1766257841651,-150.0,0.00015854,2]
[399299350,1766257841661,-500.0,0.00015863,2]
[399299351,1766257841670,-150.0,0.00015905,2]
[399299352,1766257841679,-150.0,0.00015917,2]
[399299353,1766257841688,-1101.60306325,0.00015957,2]
[399299354,1766257841698,-150.0,0.0001598,2]
[399299355,1766257841707,-150.0,0.00015983,2]
[399299356,1766257841716,-200.0,0.00016011,2]
[399299357,1766257841727,-200.0,0.00016029,2]
[399299358,1766257841735,-150.0,0.00016043,2]
[399299359,1766257841744,-150.0,0.0001606,2]
[399299360,1766257841753,-150.0,0.00016106,2]
[399299361,1766257841762,-150.0,0.00016137,2]
[399299362,1766257841771,-1898.88294142,0.00016144,2]
[399299363,1766257841780,-162.55,0.00016159,2]
[399299364,1766257841789,-547.0,0.00016164,2]
[399299365,1766257841798,-150.0,0.00016168,2]
[399299366,1766257841806,-150.0,0.00016214,2]
[399299367,1766257841815,-150.0,0.00016231,2]
[399299368,1766257841824,-150.0,0.00016291,2]
[399299369,1766257841833,-150.0,0.00016294,2]
[399299370,1766257841843,-150.0,0.00016357,2]
[399299371,1766257841852,-150.0,0.00016369,2]
[399299372,1766257841861,-150.0,0.0001642,2]
[399299373,1766257841870,-630.0,0.00016424,2]
[399299374,1766257841880,-500.0,0.00016424,2]
[399299375,1766257841890,-1101.60306325,0.00016428,2]
[399299376,1766257841899,-7330.6,0.00016438,2]
[399299377,1766257841908,-500.0,0.00016438,2]
[399299378,1766257841918,-500.0,0.00016438,2]
[399299379,1766257841928,-500.0,0.00016438,2]
[399299380,1766257841938,-500.0,0.00016438,2]
[399299381,1766257841949,-500.0,0.00016438,2]
[399299382,1766257841960,-602.6980556,0.00016438,2]
[399299383,1766257841970,-500.0,0.00016438,2]
[399299384,1766257841981,-150.0,0.00016446,2]
[399299385,1766257841989,-150.0,0.00016483,2]
[399299386,1766257842001,-1898.88294142,0.00016522,2]
[399299387,1766257842011,-150.0,0.00016523,2]
[399299388,1766257842022,-250.0,0.00016526,2]
[399299389,1766257842031,-1600.0,0.00016537,2]
[399299390,1766257842042,-150.0,0.00016546,2]
[399299391,1766257842052,-150.0,0.000166,2]
[399299392,1766257842063,-150.0,0.00016609,2]
[399299393,1766257842071,-1000.0,0.00016662,2]
[399299394,1766257842081,-150.0,0.00016672,2]
[399299395,1766257842090,-150.0,0.00016677,2]
[399299396,1766257842099,-150.0,0.00016735,2]
[399299397,1766257842108,-150.0,0.00016755,2]
[399299398,1766257842117,-150.0,0.00016798,2]
[399299399,1766257842126,-166.66,0.00016829,2]
[399299400,1766257842135,-846.45332019,0.0001683,2]
[399299401,1766257842144,-150.0,0.00016832,2]
[399299402,1766257842153,-294.0,0.00016838,2]
[399299403,1766257842162,-150.0,0.0001686,2]
[399299404,1766257842171,-10000.0,0.000169,2]
[399299405,1766257842179,-1000.0,0.000169,2]
[399299406,1766257842188,-1898.88294142,0.000169,2]
[399299407,1766257842198,-186.21416739,0.000169,2]
[399299408,1766257842207,-2809.08545958,0.000169,2]
[399299409,1766257842215,-711.22204595,0.000169,2]
[399299410,1766257842224,-269.54041244,0.000169,2]
[399299411,1766257842233,-150.0,0.00016909,2]
[399299412,1766257842242,-150.0,0.00016923,2]
[399299413,1766257842251,-191.38735328,0.00016973,2]
[399299414,1766257842268,-501.0,0.00016973,2]
[399299415,1766257842276,-500.0,0.00016973,2]
[399299416,1766257842285,-500.0,0.00016973,2]
[399299417,1766257842294,-150.00000001,0.00016986,2]
[399299418,1766257842304,-150.0,0.00016986,2]
[399299419,1766257842314,-4595.1480955,0.00016992,2]
[399299420,1766257842323,-39586.7555459,0.00016992,2]
[399299421,1766257842331,-1337.97681086,0.00016999,5]
[399299422,1766257842341,-150.03871842,0.00016999,3]
[399299423,1766257842350,-500.0,0.00016999,2]
[399299424,1766257842359,-500.0,0.00016999,2]
[399299425,1766257842368,-500.0,0.00016999,2]
[399299426,1766257842377,-500.0,0.00016999,2]
[399299427,1766257842386,-500.0,0.00016999,2]
[399299428,1766257842395,-500.0,0.00016999,2]
[399299429,1766257842404,-500.0,0.00016999,2]
[399299430,1766257842413,-500.0,0.00016999,2]
[399299431,1766257842422,-646.71552925,0.00016999,2]
[399299432,1766257842431,-1141281.53496278,0.00017,2]
[399299433,1766257842444,-100140.31790076,0.00017,2]
[399299439,1766257843200,-4174.65152005,0.00015432,2]
[399299440,1766257843210,-17341.95702185,0.00017,2]
[399299441,1766257843254,-58976.71167515,0.00017,2]
[399299442,1766257843512,-51039.7828367,0.00017,2]
[399299450,1766257846470,-461.98525914,0.000169,2]
[399299451,1766257846479,-70645.2861406,0.00017,2]
[399299453,1766257862154,500.0,0.00042878,120]
[399299455,1766257881824,232.026225,0.00042878,50]
[399299535,1766258109390,944.28681043,0.00042878,120]
[399299575,1766258161904,500.0,0.00042878,120]
[399299578,1766258165561,151.0,0.00042878,50]
[399299579,1766258165877,151.0,0.00042878,50]
[399299580,1766258166162,151.0,0.00042878,50]
[399299581,1766258166461,151.0,0.00042878,50]
[399299585,1766258169187,151.0,0.00042878,50]
[399299586,1766258169508,151.0,0.00042878,50]
[399299588,1766258169817,151.0,0.00042878,50]
[399299593,1766258180162,151.0,0.00042878,50]
[399299644,1766258246394,309.589095,0.00042878,50]
[399299645,1766258246806,309.589095,0.00042878,50]
[399299646,1766258247117,309.589095,0.00042878,50]
[399299647,1766258247428,309.589095,0.00042878,50]
[399299648,1766258247760,309.589095,0.00042878,50]
[399299649,1766258248070,309.589095,0.00042878,50]
[399299651,1766258248525,309.589095,0.00042878,50]
[399299652,1766258248568,151.0,0.00042878,30]
[399299653,1766258248820,309.589095,0.00042878,50]
[399299654,1766258249109,309.589095,0.00042878,50]
[399299655,1766258249407,309.589095,0.00042878,50]
[399299656,1766258249700,309.589095,0.00042878,50]
[399299657,1766258250014,309.589095,0.00042878,50]
[399299658,1766258250340,309.589095,0.00042878,50]
[399299659,1766258250655,309.589095,0.00042878,50]
[399299660,1766258251000,309.589095,0.00042878,50]
[399299661,1766258251314,309.589095,0.00042878,50]
[399299662,1766258251604,309.589095,0.00042878,50]
[399299663,1766258251893,309.589095,0.00042878,50]
[399299665,1766258252180,309.589095,0.00042878,50]
[399299666,1766258252456,309.589087,0.00042878,50]
[399299668,1766258254873,151.0,0.00042878,50]
[399299669,1766258255152,151.0,0.00042878,50]
[399299670,1766258255433,151.0,0.00042878,50]
[399299671,1766258255716,153.405912,0.00042878,50]
[399299693,1766258282642,652.0468136,0.00042878,30]
[399299695,1766258286964,151.0,0.00042878,50]
[399299696,1766258287283,151.0,0.00042878,50]
[399299697,1766258287615,151.0,0.00042878,50]
[399299698,1766258287910,151.0,0.00042878,50]
[399299699,1766258288238,151.0,0.00042878,50]
[399299700,1766258288534,151.0,0.00042878,50]
[399299703,1766258288821,151.0,0.00042878,50]
[399299705,1766258289163,172.955576,0.00042878,50]
[399299758,1766258369818,151.0,0.00042877,50]
[399299760,1766258370107,151.0,0.00042877,50]
[399299761,1766258370384,151.0,0.00042877,50]
[399299762,1766258370670,151.0,0.00042877,50]
[399299763,1766258370967,151.0,0.00042877,50]
[399299764,1766258371253,151.0,0.00042877,50]
[399299765,1766258371575,151.0,0.00042877,50]
[399299766,1766258371897,151.0,0.00042877,50]
[399299767,1766258372190,151.0,0.00042877,50]
[399299768,1766258372480,151.0,0.00042877,50]
[399299769,1766258372779,151.0,0.00042877,50]
[399299771,1766258373086,151.0,0.00042877,50]
[399299772,1766258373381,151.0,0.00042877,50]
[399299773,1766258373664,151.0,0.00042877,50]
[399299774,1766258373957,285.391916,0.00042877,50]
[399299785,1766258393995,151.0,0.00042877,50]
[399299823,1766258430534,151.0,0.00042877,50]
[399299824,1766258430984,151.0,0.00042877,50]
[399299852,1766258461445,500.0,0.00042877,120]
[399299883,1766258519663,-1600.0,0.00024805,120]
[399299884,1766258519709,-199.0,0.00034246,30]
[399299885,1766258519746,-199.0,0.00034931,31]
[399299886,1766258519783,-959.20255007,0.00035,30]
[399299887,1766258519819,-719.4,0.00035616,30]
[399299888,1766258519856,-468.0,0.00035616,39]
[399299889,1766258519894,-284.94423932,0.00035879,30]
[399299890,1766258519932,-501.251,0.00037415,48]
[399299891,1766258519970,-1035.0,0.00038,30]
[399299892,1766258520006,-1000.0,0.00038,30]
[399299893,1766258520043,-1000.0,0.00038,30]
[399299894,1766258520082,-1537.94,0.00038356,120]
[399299895,1766258520136,-303.05396181,0.00039,70]
[399299896,1766258520179,-186.5,0.00039,39]
[399299897,1766258520221,-1537.94,0.00039452,120]
[399299898,1766258520267,-1000.0,0.0004,120]
[399299899,1766258520308,-3000.0,0.00040399,30]
[399299900,1766258520348,-1537.94,0.00040547,120]
[399299901,1766258520385,-790.93,0.00040767,30]
[399299902,1766258520421,-11528.41,0.000408,30]
[399299903,1766258520456,-583.21,0.00041,120]
[399299904,1766258520490,-1597.0,0.00041,30]
[399299905,1766258520536,-500.0,0.00041095,120]
[399299906,1766258520569,-500.0,0.00041095,120]
[399299907,1766258520602,-236.05898136,0.00041095,120]
[399299908,1766258520635,-500.0,0.00041095,120]
[399299909,1766258520668,-513.98,0.00041095,120]
[399299910,1766258520702,-588.88,0.00041095,120]
[399299911,1766258520736,-2115.8,0.00041095,120]
[399299912,1766258520773,-2115.8,0.00041095,120]
[399299913,1766258520808,-2115.8,0.00041095,120]
[399299914,1766258520844,-2115.8,0.00041095,120]
[399299915,1766258520880,-2115.8,0.00041095,120]
[399299916,1766258520915,-2115.8,0.00041095,120]
[399299917,1766258520949,-2115.8,0.00041095,120]
[399299918,1766258520988,-2115.8,0.00041095,120]
[399299919,1766258521026,-2115.8,0.00041095,120]
[399299920,1766258521062,-2115.8,0.00041095,120]
[399299921,1766258521097,-2115.8,0.00041095,120]
[399299922,1766258521131,-2115.8,0.00041095,120]
[399299923,1766258521171,-2115.8,0.00041095,120]
[399299924,1766258521222,-2115.8,0.00041095,120]
[399299925,1766258521261,-2115.8,0.00041095,120]
[399299926,1766258521297,-2115.8,0.00041095,120]
[399299927,1766258521335,-2115.8,0.00041095,120]
[399299928,1766258521373,-2115.8,0.00041095,120]
[399299929,1766258521409,-2115.8,0.00041095,120]
[399299930,1766258521446,-2115.8,0.00041095,120]
[399299931,1766258521480,-2115.8,0.00041095,120]
[399299932,1766258521515,-2115.8,0.00041095,120]
[399299933,1766258521548,-2115.8,0.00041095,120]
[399299934,1766258521580,-2115.93861001,0.00041095,120]
[399299935,1766258521615,-500.0,0.00041095,120]
[399299936,1766258521650,-500.0,0.00041095,120]
[399299937,1766258521684,-500.0,0.00041095,120]
[399299938,1766258521718,-500.0,0.00041095,120]
[399299939,1766258521756,-500.0,0.00041095,120]
[399299940,1766258521791,-500.0,0.00041095,120]
[399299941,1766258521826,-500.0,0.00041095,120]
[399299942,1766258521860,-500.0,0.00041095,120]
[399299943,1766258521895,-500.0,0.00041095,120]
[399299944,1766258521930,-500.0,0.00041095,120]
[399299945,1766258521964,-500.0,0.00041095,120]
[399299946,1766258521999,-500.0,0.00041095,120]
[399299947,1766258522289,-500.0,0.00041095,120]
[399299948,1766258522329,-500.0,0.00041095,120]
[399299949,1766258522368,-500.0,0.00041095,120]
[399299950,1766258522408,-500.0,0.00041095,120]
[399299951,1766258522452,-500.0,0.00041095,120]
[399299952,1766258522492,-500.0,0.00041095,120]
[399299953,1766258522532,-500.0,0.00041095,120]
[399299954,1766258522569,-500.0,0.00041095,120]
[399299955,1766258522606,-155.45623292,0.00041095,120]
[399299956,1766258522643,-613.26912292,0.00041095,120]
[399299957,1766258522680,-4596.45,0.00041095,120]
[399299958,1766258522717,-4596.45,0.00041095,120]
[399299959,1766258522753,-4596.45,0.00041095,120]
[399299960,1766258522792,-4596.45,0.00041095,120]
[399299961,1766258522828,-4596.45,0.00041095,120]
[399299962,1766258522864,-4596.45,0.00041095,120]
[399299963,1766258522902,-4596.45,0.00041095,120]
[399299964,1766258522938,-4596.45,0.00041095,120]
[399299965,1766258522973,-4596.45,0.00041095,120]
[399299966,1766258523009,-4596.45,0.00041095,120]
[399299967,1766258523045,-4596.45,0.00041095,120]
[399299968,1766258523082,-4596.45,0.00041095,120]
[399299969,1766258523123,-4596.45,0.00041095,120]
[399299970,1766258523162,-4596.45,0.00041095,120]
[399299971,1766258523203,-4596.45,0.00041095,120]
[399299972,1766258523246,-4596.45,0.00041095,120]
[399299973,1766258523285,-4596.45,0.00041095,120]
[399299974,1766258523326,-4596.45,0.00041095,120]
[399299975,1766258523366,-4596.45,0.00041095,120]
[399299976,1766258523406,-4596.45,0.00041095,120]
[399299977,1766258523446,-4596.45,0.00041095,120]
[399299978,1766258523499,-4596.45,0.00041095,120]
[399299979,1766258523540,-4596.45,0.00041095,120]
[399299980,1766258523577,-4596.64479001,0.00041095,120]
[399299981,1766258523614,-500.0,0.00041095,120]
[399299982,1766258523650,-500.0,0.00041095,120]
[399299983,1766258523685,-500.0,0.00041095,120]
[399299984,1766258523721,-500.0,0.00041095,120]
[399299985,1766258523757,-503.03407889,0.00041095,60]
[399299986,1766258523793,-500.0,0.00041095,120]
[399299987,1766258523830,-500.0,0.00041095,120]
[399299988,1766258523868,-500.0,0.00041095,120]
[399299989,1766258523906,-220.61026479,0.00041095,120]
[399299990,1766258523941,-500.0,0.00041095,120]
[399299991,1766258523982,-500.0,0.00041095,120]
[399299992,1766258524019,-515.53597367,0.00041095,120]
[399299993,1766258524061,-574.21094497,0.00041095,120]
[399299994,1766258524100,-511.85238157,0.00041095,30]
[399299995,1766258524150,-1199.0,0.00041096,80]
[399299996,1766258524190,-780.0,0.00041096,113]
[399299997,1766258524229,-500.0,0.00041096,120]
[399299998,1766258524270,-500.0,0.00041096,120]
[399299999,1766258524312,-500.0,0.00041096,120]
[399300000,1766258524354,-500.0,0.00041096,120]
[399300001,1766258524399,-500.0,0.00041096,120]
[399300002,1766258524438,-500.0,0.00041096,120]
[399300003,1766258524475,-500.0,0.00041096,120]
[399300004,1766258524515,-500.0,0.00041096,120]
[399300005,1766258524552,-500.0,0.00041096,120]
[399300006,1766258524590,-500.0,0.00041096,120]
[399300007,1766258524628,-500.0,0.00041096,120]
[399300008,1766258524668,-500.0,0.00041096,120]
[399300009,1766258524712,-500.0,0.00041096,120]
[399300010,1766258524751,-500.0,0.00041096,120]
[399300011,1766258524793,-500.0,0.00041096,120]
[399300012,1766258524834,-500.0,0.00041096,120]
[399300013,1766258524874,-500.0,0.00041096,120]
[399300014,1766258524919,-150.0,0.00041096,120]
[399300015,1766258524959,-500.0,0.00041096,120]
[399300016,1766258524998,-500.0,0.00041096,120]
[399300017,1766258525039,-150.0,0.00041096,120]
[399300018,1766258525080,-500.0,0.00041096,120]
[399300019,1766258525122,-430.09404515,0.00041096,120]
[399300020,1766258525164,-500.0,0.00041096,120]
[399300021,1766258525202,-185.57141804,0.00041096,120]
[399300022,1766258525241,-500.0,0.00041096,120]
[399300023,1766258525278,-500.0,0.00041096,120]
[399300024,1766258525316,-500.0,0.00041096,120]
[399300025,1766258525355,-150.0,0.00041096,120]
[399300026,1766258525395,-500.0,0.00041096,120]
[399300027,1766258525435,-500.0,0.00041096,120]
[399300028,1766258525475,-150.0,0.00041096,120]
[399300029,1766258525515,-500.0,0.00041096,120]
[399300030,1766258525553,-500.0,0.00041096,120]
[399300031,1766258525590,-250.0,0.00041096,120]
[399300032,1766258525629,-500.0,0.00041096,120]
[399300033,1766258525668,-500.0,0.00041096,120]
[399300034,1766258525707,-500.0,0.00041096,120]
[399300035,1766258525746,-500.0,0.00041096,120]
[399300036,1766258525784,-500.0,0.00041096,120]
[399300037,1766258525824,-500.0,0.00041096,120]
[399300038,1766258525862,-500.0,0.00041096,120]
[399300039,1766258525900,-500.0,0.00041096,120]
[399300040,1766258525938,-500.0,0.00041096,120]
[399300041,1766258526181,-150.0,0.00041096,120]
[399300042,1766258526221,-514.26253483,0.00041096,120]
[399300043,1766258526260,-500.0,0.00041096,120]
[399300044,1766258526300,-500.0,0.00041096,120]
[399300045,1766258526338,-500.0,0.00041096,120]
[399300046,1766258526376,-500.0,0.00041096,120]
[399300047,1766258526415,-805.0,0.00041096,120]
[399300048,1766258526453,-461.76159208,0.00041096,120]
[399300049,1766258526491,-805.0,0.00041096,120]
[399300050,1766258526526,-500.0,0.00041096,120]
[399300051,1766258526561,-805.0,0.00041096,120]
[399300052,1766258526596,-500.0,0.00041096,120]
[399300053,1766258526631,-805.0,0.00041096,120]
[399300054,1766258526667,-500.0,0.00041096,120]
[399300055,1766258526702,-150.0,0.00041096,120]
[399300056,1766258526738,-805.0,0.00041096,120]
[399300057,1766258526772,-500.0,0.00041096,120]
[399300058,1766258526806,-150.0,0.00041096,120]
[399300059,1766258526841,-805.0,0.00041096,120]
[399300060,1766258526877,-500.0,0.00041096,120]
[399300061,1766258526913,-150.0,0.00041096,120]
[399300062,1766258526950,-500.0,0.00041096,120]
[399300063,1766258526987,-805.0,0.00041096,120]
[399300064,1766258527020,-255.39654287,0.00041096,120]
[399300065,1766258527054,-500.0,0.00041096,120]
[399300066,1766258527089,-805.0,0.00041096,120]
[399300067,1766258527127,-200.0,0.00041096,120]
[399300068,1766258527168,-500.0,0.00041096,120]
[399300069,1766258527211,-805.0,0.00041096,120]
[399300070,1766258527251,-500.0,0.00041096,120]
[399300071,1766258527288,-805.0,0.00041096,120]
[399300072,1766258527327,-805.0,0.00041096,120]
[399300073,1766258527366,-200.0,0.00041096,120]
[399300074,1766258527403,-500.0,0.00041096,120]
[399300075,1766258527438,-805.0,0.00041096,120]
[399300076,1766258527473,-500.0,0.00041096,120]
[399300077,1766258527508,-200.0,0.00041096,120]
[399300078,1766258527543,-805.0,0.00041096,120]
[399300079,1766258527576,-805.0,0.00041096,120]
[399300080,1766258527611,-805.0,0.00041096,120]
[399300081,1766258527646,-381.55341749,0.00041096,120]
[399300082,1766258527681,-805.0,0.00041096,120]
[399300083,1766258527717,-500.0,0.00041096,120]
[399300084,1766258527752,-500.0,0.00041096,120]
[399300085,1766258527786,-500.0,0.00041096,120]
[399300086,1766258527822,-805.0,0.00041096,120]
[399300087,1766258527857,-150.0,0.00041096,120]
[399300088,1766258527892,-500.0,0.00041096,120]
[399300089,1766258527926,-500.0,0.00041096,120]
[399300090,1766258527962,-150.0,0.00041096,120]
[399300091,1766258527997,-500.0,0.00041096,120]
[399300092,1766258528035,-500.0,0.00041096,120]
[399300093,1766258528073,-151.21834691,0.00041096,120]
[399300094,1766258528110,-500.0,0.00041096,120]
[399300095,1766258528148,-500.0,0.00041096,120]
[399300096,1766258528187,-500.0,0.00041096,120]
[399300097,1766258528224,-353.74835527,0.00041096,120]
[399300098,1766258528264,-500.0,0.00041096,120]
[399300099,1766258528302,-500.0,0.00041096,120]
[399300100,1766258528340,-805.0,0.00041096,120]
[399300103,1766258528378,-500.0,0.00041096,120]
[399300104,1766258528417,-500.0,0.00041096,120]
[399300105,1766258528456,-500.0,0.00041096,120]
[399300106,1766258528497,-500.0,0.00041096,120]
[399300107,1766258528535,-324.51270306,0.00041096,120]
[399300108,1766258528572,-805.0,0.00041096,120]
[399300109,1766258528608,-805.0,0.00041096,120]
[399300110,1766258528644,-805.0,0.00041096,120]
[399300111,1766258528681,-805.0,0.00041096,120]
[399300112,1766258528719,-805.0,0.00041096,120]
[399300113,1766258528757,-819.34448356,0.00041096,120]
[399300114,1766258528794,-500.0,0.00041096,120]
[399300115,1766258528830,-500.0,0.00041096,120]
[399300116,1766258528867,-184.26533667,0.00041096,120]
[399300117,1766258528902,-500.0,0.00041096,120]
[399300118,1766258528938,-500.0,0.00041096,120]
[399300119,1766258528974,-500.0,0.00041096,120]
[399300120,1766258529012,-500.0,0.00041096,120]
[399300121,1766258529049,-500.0,0.00041096,120]
[399300122,1766258529086,-500.0,0.00041096,120]
[399300123,1766258529124,-500.0,0.00041096,120]
[399300124,1766258529160,-500.0,0.00041096,120]
[399300125,1766258529201,-500.0,0.00041096,120]
[399300126,1766258529243,-150.0,0.00041096,120]
[399300127,1766258529285,-200.0,0.00041096,120]
[399300128,1766258529325,-365.09176189,0.00041096,120]
[399300129,1766258529366,-414.86987109,0.00041096,120]
[399300130,1766258529407,-150.0,0.00041096,120]
[399300131,1766258529446,-150.0,0.00041096,120]
[399300132,1766258529486,-150.0,0.00041096,120]
[399300133,1766258529526,-250.0,0.00041096,120]
[399300134,1766258529566,-500.0,0.00041096,120]
[399300135,1766258529603,-200.0,0.00041096,120]
[399300136,1766258529641,-515.0,0.00041096,120]
[399300137,1766258529680,-500.0,0.00041096,120]
[399300138,1766258529858,-515.0,0.00041096,120]
[399300139,1766258529897,-500.0,0.00041096,120]
[399300140,1766258529936,-515.0,0.00041096,120]
[399300141,1766258529974,-500.0,0.00041096,120]
[399300142,1766258530011,-500.0,0.00041096,120]
[399300143,1766258530049,-515.0,0.00041096,120]
[399300144,1766258530085,-500.0,0.00041096,120]
[399300145,1766258530122,-500.0,0.00041096,120]
[399300146,1766258530158,-515.0,0.00041096,120]
[399300147,1766258530196,-500.0,0.00041096,120]
[399300148,1766258530235,-500.0,0.00041096,120]
[399300149,1766258530274,-515.0,0.00041096,120]
[399300150,1766258530311,-500.0,0.00041096,120]
[399300151,1766258530350,-500.0,0.00041096,120]
[399300152,1766258530389,-515.0,0.00041096,120]
[399300153,1766258530426,-500.0,0.00041096,120]
[399300154,1766258530463,-500.0,0.00041096,120]
[399300155,1766258530499,-515.0,0.00041096,120]
[399300156,1766258530534,-524.88126201,0.00041096,120]
[399300157,1766258530570,-500.0,0.00041096,120]
[399300158,1766258530605,-515.0,0.00041096,120]
[399300159,1766258530644,-171.69482467,0.00041096,120]
[399300160,1766258530679,-515.0,0.00041096,120]
[399300161,1766258530715,-515.0,0.00041096,120]
[399300162,1766258530751,-515.0,0.00041096,120]
[399300163,1766258530786,-515.0,0.00041096,120]
[399300164,1766258530822,-515.0,0.00041096,120]
[399300165,1766258530856,-515.0,0.00041096,120]
[399300166,1766258530894,-515.0,0.00041096,120]
[399300167,1766258530931,-515.0,0.00041096,120]
[399300168,1766258530967,-515.0,0.00041096,120]
[399300169,1766258531002,-515.0,0.00041096,120]
[399300170,1766258531038,-515.0,0.00041096,120]
[399300171,1766258531074,-515.0,0.00041096,120]
[399300172,1766258531110,-515.0,0.00041096,120]
[399300173,1766258531150,-515.0,0.00041096,120]
[399300174,1766258531187,-531.07268644,0.00041096,120]
[399300175,1766258531223,-150.0,0.00041096,120]
[399300176,1766258531260,-952.60205752,0.00041096,50]
[399300177,1766258531295,-1122.0,0.00041279,30]
[399300178,1766258531331,-500.0,0.00041286,60]
[399300179,1766258531367,-700.0,0.00041286,60]
[399300180,1766258531404,-500.0,0.00041286,60]
[399300181,1766258531439,-200.0,0.00041343,120]
[399300182,1766258531475,-133895.96354993,0.000415,30]
[399300183,1766258531512,-3706.18114229,0.000415,30]
[399300184,1766258531549,-150.0,0.00041502,30]
[399300185,1766258531587,-593.27315595,0.00041502,30]
[399300186,1766258531621,-517.37376148,0.0004155,120]
[399300187,1766258531657,-150.22,0.00041573,120]
[399300188,1766258531692,-177.0,0.000416,120]
[399300189,1766258531727,-2052.3559328,0.000416,120]
[399300190,1766258531764,-1537.94,0.00041643,120]
[399300191,1766258531801,-150.22,0.00041673,120]
[399300192,1766258531838,-163.0,0.000417,120]
[399300193,1766258531873,-1122.0,0.00041705,30]
[399300194,1766258531910,-150.22,0.00041773,120]
[399300195,1766258531946,-500.0,0.00041834,60]
[399300196,1766258531982,-700.0,0.00041834,60]
[399300197,1766258532022,-150.22,0.00041873,120]
[399300198,1766258532064,-5000000.0,0.000419,120]
[399300199,1766258532104,-391.77,0.000419,120]
[399300200,1766258532143,-464.6,0.00041918,30]
[399300201,1766258532183,-464.6,0.00041918,30]
[399300202,1766258532222,-464.6,0.00041918,30]
[399300203,1766258532261,-464.6,0.00041918,30]
[399300204,1766258532300,-464.6,0.00041918,30]
[399300205,1766258532339,-464.6,0.00041918,30]
[399300206,1766258532378,-464.6,0.00041918,30]
[399300207,1766258532416,-464.6,0.00041918,30]
[399300208,1766258532452,-464.6,0.00041918,30]
[399300209,1766258532496,-464.6,0.00041918,30]
[399300210,1766258532532,-464.6,0.00041918,30]
[399300211,1766258532567,-464.6,0.00041918,30]
[399300212,1766258532601,-464.6,0.00041918,30]
[399300213,1766258532636,-170.64,0.00041918,30]
[399300214,1766258532671,-572.2,0.00041918,30]
[399300215,1766258532707,-170.64,0.00041918,30]
[399300216,1766258532742,-170.64,0.00041918,30]
[399300217,1766258532777,-170.64,0.00041918,30]
[399300218,1766258532813,-170.64,0.00041918,30]
[399300219,1766258532852,-170.64,0.00041918,30]
[399300220,1766258532893,-170.64,0.00041918,30]
[399300221,1766258532934,-170.64,0.00041918,30]
[399300222,1766258532976,-1218.93,0.00041918,30]
[399300223,1766258533017,-170.64,0.00041918,30]
[399300224,1766258533057,-170.64,0.00041918,30]
[399300225,1766258533097,-178.41,0.00041918,30]
[399300226,1766258533139,-178.41,0.00041918,30]
[399300227,1766258533187,-178.41,0.00041918,30]